[Event "*** Titled Tuesday Blitz"]
[Site "Chess.com"]
[Date "2019.07.02"]
[Round "6"]
[White "Squirlolz"]
[Black "KamilPlichta"]
[Result "0-1"]
[WhiteElo "2506"]
[BlackElo "2789"]
[TimeControl "180+2"]
[EndTime "14:20:40 PDT"]
[Termination "KamilPlichta won by resignation"]

1. e4 {[%clk 0:03:01.9]} 1... Nf6 {[%clk 0:03:00.9]} 2. e5 {[%clk 0:03:03.1]}
2... Nd5 {[%clk 0:03:02.3]} 3. d4 {[%clk 0:03:02.8]} 3... Nb6 {[%clk 0:03:03.4]}
4. a4 {[%clk 0:03:03.1]} 4... a5 {[%clk 0:03:04.3]} 5. Nf3 {[%clk 0:02:55.4]}
5... d5 {[%clk 0:03:05.7]} 6. exd6 {[%clk 0:02:56.6]} 6... exd6 {[%clk
0:03:06.8]} 7. h3 {[%clk 0:02:56.1]} 7... Be7 {[%clk 0:03:08]} 8. Bd3 {[%clk
0:02:56.8]} 8... O-O {[%clk 0:03:09.6]} 9. O-O {[%clk 0:02:58.1]} 9... Nc6
{[%clk 0:03:11.2]} 10. c3 {[%clk 0:02:59]} 10... Bf6 {[%clk 0:03:08.1]} 11. Nbd2
{[%clk 0:02:55.5]} 11... d5 {[%clk 0:03:06.7]} 12. Re1 {[%clk 0:02:54.2]} 12...
Re8 {[%clk 0:03:07]} 13. Nf1 {[%clk 0:02:55.2]} 13... Ne7 {[%clk 0:03:04.2]} 14.
Bf4 {[%clk 0:02:38.5]} 14... c6 {[%clk 0:02:58.3]} 15. Qc2 {[%clk 0:01:57.7]}
15... g6 {[%clk 0:02:52.9]} 16. Ng3 {[%clk 0:01:58.4]} 16... Nc4 {[%clk
0:02:44.2]} 17. Re2 {[%clk 0:01:55.7]} 17... Be6 {[%clk 0:02:28]} 18. Rae1
{[%clk 0:01:55.1]} 18... Nd6 {[%clk 0:02:29.1]} 19. Ne5 {[%clk 0:01:05.4]} 19...
Ndf5 {[%clk 0:02:27.6]} 20. Nxf5 {[%clk 0:00:45.9]} 20... Bxf5 {[%clk
0:02:27.2]} 21. g4 {[%clk 0:00:43.4]} 21... Bxd3 {[%clk 0:02:27.2]} 22. Qxd3
{[%clk 0:00:45.3]} 22... Nc8 {[%clk 0:02:08.6]} 23. Nxf7 {[%clk 0:00:40.4]}
23... Rxe2 {[%clk 0:02:08.3]} 24. Nh6+ {[%clk 0:00:38.8]} 24... Kg7 {[%clk
0:02:04.8]} 25. Qxe2 {[%clk 0:00:35.1]} 25... Bg5 {[%clk 0:01:46.6]} 26. Qe5+
{[%clk 0:00:29.9]} 26... Kxh6 {[%clk 0:01:46.5]} 27. Bxg5+ {[%clk 0:00:13.3]}
27... Qxg5 {[%clk 0:01:46.9]} 28. Qh8 {[%clk 0:00:15.1]} 28... Nb6 {[%clk
0:01:42.4]} 29. Re8 {[%clk 0:00:15.7]} 29... Rxe8 {[%clk 0:01:41.2]} 30. Qxe8
{[%clk 0:00:17.6]} 30... Qf4 {[%clk 0:01:39.7]} 31. Qd8 {[%clk 0:00:14.2]} 31...
Nc4 {[%clk 0:01:39.2]} 32. g5+ {[%clk 0:00:08.6]} 32... Qxg5+ {[%clk 0:01:39.6]}
0-1

[Event "*** Titled Tuesday Blitz"]
[Site "Chess.com"]
[Date "2019.07.02"]
[Round "6"]
[White "Palacios-LLera"]
[Black "KL31"]
[Result "1-0"]
[WhiteElo "2412"]
[BlackElo "2253"]
[TimeControl "180+2"]
[EndTime "14:20:40 PDT"]
[Termination "Palacios-LLera won by resignation"]

1. d4 {[%clk 0:03:01.5]} 1... Nf6 {[%clk 0:03:00.7]} 2. Nf3 {[%clk 0:03:02.8]}
2... e6 {[%clk 0:03:02]} 3. c4 {[%clk 0:03:04]} 3... b6 {[%clk 0:03:01.3]} 4. a3
{[%clk 0:03:04.5]} 4... d5 {[%clk 0:02:50.9]} 5. cxd5 {[%clk 0:03:03]} 5... Nxd5
{[%clk 0:02:48.1]} 6. e4 {[%clk 0:03:02.8]} 6... Nf6 {[%clk 0:02:49.1]} 7. Nc3
{[%clk 0:03:03.4]} 7... Bb7 {[%clk 0:02:49.7]} 8. Qc2 {[%clk 0:03:02.9]} 8... c5
{[%clk 0:02:49]} 9. Bb5+ {[%clk 0:02:58.2]} 9... Nbd7 {[%clk 0:02:45.1]} 10. d5
{[%clk 0:02:52.8]} 10... exd5 {[%clk 0:02:41.8]} 11. exd5 {[%clk 0:02:53.8]}
11... Bd6 {[%clk 0:02:40.5]} 12. O-O {[%clk 0:02:53.9]} 12... O-O {[%clk
0:02:41.3]} 13. Bg5 {[%clk 0:02:46.5]} 13... h6 {[%clk 0:02:41.3]} 14. Bh4
{[%clk 0:02:42.4]} 14... Qc7 {[%clk 0:02:21.2]} 15. Rad1 {[%clk 0:02:37]} 15...
a6 {[%clk 0:02:14.1]} 16. Bd3 {[%clk 0:02:27]} 16... Rfe8 {[%clk 0:02:10.2]} 17.
a4 {[%clk 0:02:24.1]} 17... Ng4 {[%clk 0:01:55.6]} 18. Bg3 {[%clk 0:02:10]}
18... Bxg3 {[%clk 0:01:56.4]} 19. hxg3 {[%clk 0:02:11]} 19... Nde5 {[%clk
0:01:48.9]} 20. d6 {[%clk 0:02:02.6]} 20... Qd8 {[%clk 0:01:34.2]} 21. Nxe5
{[%clk 0:01:54.4]} 21... Rxe5 {[%clk 0:01:36.1]} 22. Bh7+ {[%clk 0:01:49]} 22...
Kh8 {[%clk 0:01:33]} 23. Bf5 {[%clk 0:01:50.4]} 23... Qg5 {[%clk 0:01:22]} 24.
d7 {[%clk 0:01:21.7]} 24... Rd8 {[%clk 0:01:00.1]} 25. Rfe1 {[%clk 0:01:09.8]}
25... Rxf5 {[%clk 0:00:43.8]} 26. Re8+ {[%clk 0:01:07.6]} 26... Kh7 {[%clk
0:00:45.3]} 27. Rxd8 {[%clk 0:01:05.9]} 27... Qh5 {[%clk 0:00:45.9]} 28. Qxf5+
{[%clk 0:01:02.8]} 28... Qxf5 {[%clk 0:00:46.3]} 29. Rh8+ {[%clk 0:01:03.6]}
29... Kxh8 {[%clk 0:00:47.2]} 30. d8=Q+ {[%clk 0:01:05]} 30... Kh7 {[%clk
0:00:47.6]} 31. Qd3 {[%clk 0:01:05.8]} 31... Qxd3 {[%clk 0:00:40]} 32. Rxd3
{[%clk 0:01:06.5]} 1-0

[Event "*** Titled Tuesday Blitz"]
[Site "Chess.com"]
[Date "2019.07.02"]
[Round "6"]
[White "IveBeenThroughPain"]
[Black "sandager"]
[Result "1-0"]
[WhiteElo "2288"]
[BlackElo "2127"]
[TimeControl "180+2"]
[EndTime "14:20:40 PDT"]
[Termination "IveBeenThroughPain won by resignation"]

1. d4 {[%clk 0:03:01.9]} 1... Nf6 {[%clk 0:02:59.7]} 2. c4 {[%clk 0:03:02.6]}
2... g6 {[%clk 0:03:00.6]} 3. Nc3 {[%clk 0:02:52.5]} 3... d5 {[%clk 0:03:00.8]}
4. cxd5 {[%clk 0:02:53.2]} 4... Nxd5 {[%clk 0:03:01.6]} 5. g3 {[%clk 0:02:54.9]}
5... Bg7 {[%clk 0:03:00.2]} 6. Bg2 {[%clk 0:02:55.9]} 6... Nb6 {[%clk
0:03:00.6]} 7. Nf3 {[%clk 0:02:57]} 7... O-O {[%clk 0:03:00.9]} 8. O-O {[%clk
0:02:58]} 8... e6 {[%clk 0:02:58.2]} 9. b3 {[%clk 0:02:52]} 9... c5 {[%clk
0:02:56.4]} 10. e3 {[%clk 0:02:48.2]} 10... Nc6 {[%clk 0:02:53.9]} 11. Ne2
{[%clk 0:02:49.3]} 11... e5 {[%clk 0:02:45.2]} 12. Bb2 {[%clk 0:02:48.1]} 12...
exd4 {[%clk 0:02:24.5]} 13. exd4 {[%clk 0:02:47.1]} 13... Bg4 {[%clk 0:02:12.6]}
14. Rc1 {[%clk 0:02:37.2]} 14... Bxf3 {[%clk 0:02:11.7]} 15. Bxf3 {[%clk
0:02:37.7]} 15... Nxd4 {[%clk 0:02:11.9]} 16. Nxd4 {[%clk 0:02:38.4]} 16... cxd4
{[%clk 0:02:11.9]} 17. Bxb7 {[%clk 0:02:38.5]} 17... Rb8 {[%clk 0:02:11.8]} 18.
Bg2 {[%clk 0:02:40.1]} 18... Qd6 {[%clk 0:02:05.4]} 19. Qd3 {[%clk 0:02:40.7]}
19... Rfd8 {[%clk 0:02:04.6]} 20. Rfd1 {[%clk 0:02:41.7]} 20... h6 {[%clk
0:01:57.4]} 21. Rc6 {[%clk 0:02:40.8]} 21... Qd7 {[%clk 0:01:56.3]} 22. Rdc1
{[%clk 0:02:41]} 22... Rbc8 {[%clk 0:01:51.9]} 23. Rxc8 {[%clk 0:02:41.8]} 23...
Nxc8 {[%clk 0:01:44.4]} 24. Ba3 {[%clk 0:02:30.9]} 24... Nd6 {[%clk 0:01:30.9]}
25. Bc5 {[%clk 0:02:29.5]} 25... Nf5 {[%clk 0:01:27.8]} 26. Bh3 {[%clk
0:02:13.5]} 26... Qd5 {[%clk 0:01:24.3]} 27. Bxf5 {[%clk 0:02:13]} 27... gxf5
{[%clk 0:01:22.5]} 28. Bxa7 {[%clk 0:02:06.2]} 28... Qa5 {[%clk 0:01:16.6]} 29.
Bc5 {[%clk 0:02:01]} 29... Qxa2 {[%clk 0:01:16.1]} 30. b4 {[%clk 0:02:01.4]}
30... Qd5 {[%clk 0:01:14.9]} 31. h3 {[%clk 0:01:58.6]} 31... Rc8 {[%clk
0:01:09.5]} 32. Rd1 {[%clk 0:01:59.3]} 32... Qe4 {[%clk 0:00:57.7]} 33. Rd2
{[%clk 0:01:39.9]} 33... Ra8 {[%clk 0:00:36.5]} 34. Qxe4 {[%clk 0:01:38.5]}
34... fxe4 {[%clk 0:00:35.2]} 35. Bxd4 {[%clk 0:01:40.2]} 35... Ra1+ {[%clk
0:00:21.2]} 36. Bxa1 {[%clk 0:01:40.3]} 1-0

[Event "*** Titled Tuesday Blitz"]
[Site "Chess.com"]
[Date "2019.07.02"]
[Round "6"]
[White "G_Threepwood"]
[Black "Semen_Khanin"]
[Result "0-1"]
[WhiteElo "2481"]
[BlackElo "2710"]
[TimeControl "180+2"]
[EndTime "14:20:49 PDT"]
[Termination "Semen_Khanin won by resignation"]

1. e4 {[%clk 0:03:01.9]} 1... c5 {[%clk 0:03:00.3]} 2. Nc3 {[%clk 0:03:03.2]}
2... Nc6 {[%clk 0:02:59.3]} 3. Nf3 {[%clk 0:03:03.8]} 3... g6 {[%clk 0:02:59.6]}
4. d4 {[%clk 0:03:03.4]} 4... cxd4 {[%clk 0:03:01]} 5. Nxd4 {[%clk 0:03:05.3]}
5... Bg7 {[%clk 0:03:02.6]} 6. Be3 {[%clk 0:03:06.8]} 6... Nf6 {[%clk
0:03:03.8]} 7. Bc4 {[%clk 0:03:08.3]} 7... O-O {[%clk 0:03:04.5]} 8. Bb3 {[%clk
0:03:09.8]} 8... Re8 {[%clk 0:03:04.6]} 9. h4 {[%clk 0:03:07.8]} 9... d5 {[%clk
0:03:02.2]} 10. exd5 {[%clk 0:02:55.1]} 10... Na5 {[%clk 0:03:03.4]} 11. h5
{[%clk 0:02:56.3]} 11... Nxb3 {[%clk 0:03:01.3]} 12. axb3 {[%clk 0:02:51.9]}
12... Nxd5 {[%clk 0:03:01.9]} 13. hxg6 {[%clk 0:02:50.9]} 13... hxg6 {[%clk
0:03:02.4]} 14. Bh6 {[%clk 0:02:45.1]} 14... e5 {[%clk 0:02:51.8]} 15. Nde2
{[%clk 0:02:35.4]} 15... Nxc3 {[%clk 0:02:50.6]} 16. Qxd8 {[%clk 0:02:34.3]}
16... Rxd8 {[%clk 0:02:51.7]} 17. Bxg7 {[%clk 0:02:32.9]} 17... Kxg7 {[%clk
0:02:51.1]} 18. bxc3 {[%clk 0:02:27.5]} 18... Bf5 {[%clk 0:02:52.6]} 19. Ra2
{[%clk 0:02:24.5]} 19... a5 {[%clk 0:02:52.9]} 20. Ng3 {[%clk 0:02:24.6]} 20...
Be6 {[%clk 0:02:53.2]} 21. Ke2 {[%clk 0:02:10.9]} 21... b5 {[%clk 0:02:53.2]}
22. Rha1 {[%clk 0:02:06]} 22... a4 {[%clk 0:02:49.7]} 23. Ra3 {[%clk 0:01:36.8]}
23... axb3 {[%clk 0:02:44.3]} 24. cxb3 {[%clk 0:01:37.9]} 24... Rac8 {[%clk
0:02:45.5]} 25. b4 {[%clk 0:01:29.5]} 25... Bc4+ {[%clk 0:02:45.7]} 26. Ke1
{[%clk 0:01:28.3]} 26... f5 {[%clk 0:02:44.6]} 27. Rd1 {[%clk 0:01:27.8]} 27...
Rxd1+ {[%clk 0:02:44.1]} 28. Kxd1 {[%clk 0:01:29.2]} 28... Rd8+ {[%clk
0:02:45.5]} 29. Ke1 {[%clk 0:01:21.1]} 29... Rh8 {[%clk 0:02:17.1]} 30. f3
{[%clk 0:01:00.4]} 30... Rd8 {[%clk 0:02:18]} 31. Ne2 {[%clk 0:00:57.2]} 31...
Kf6 {[%clk 0:02:18.3]} 32. g3 {[%clk 0:00:41.2]} 32... Rd3 {[%clk 0:02:16.8]}
33. Ra6+ {[%clk 0:00:38.5]} 33... Kg7 {[%clk 0:02:16.6]} 34. Ng1 {[%clk
0:00:27.1]} 34... Rxc3 {[%clk 0:02:16]} 35. Kf2 {[%clk 0:00:28.2]} 35... Rb3
{[%clk 0:02:11.5]} 36. f4 {[%clk 0:00:27.6]} 36... e4 {[%clk 0:02:11.9]} 37. Nh3
{[%clk 0:00:24.5]} 37... e3+ {[%clk 0:02:03.4]} 38. Kf3 {[%clk 0:00:25.4]} 38...
e2+ {[%clk 0:02:04.4]} 39. Kf2 {[%clk 0:00:26.3]} 39... Rb1 {[%clk 0:02:00.1]}
40. Ra7+ {[%clk 0:00:25.3]} 40... Kf8 {[%clk 0:02:01.2]} 0-1

[Event "*** Titled Tuesday Blitz"]
[Site "Chess.com"]
[Date "2019.07.02"]
[Round "6"]
[White "INLOVEWITHF"]
[Black "KarstenHansch"]
[Result "1-0"]
[WhiteElo "2385"]
[BlackElo "2409"]
[TimeControl "180+2"]
[EndTime "14:20:53 PDT"]
[Termination "INLOVEWITHF won by resignation"]

1. e4 {[%clk 0:03:01.9]} 1... c6 {[%clk 0:03:00.8]} 2. d4 {[%clk 0:03:02.6]}
2... d5 {[%clk 0:03:02.7]} 3. e5 {[%clk 0:03:03.6]} 3... Bf5 {[%clk 0:03:02.8]}
4. h4 {[%clk 0:03:04.9]} 4... h5 {[%clk 0:03:03.2]} 5. Bd3 {[%clk 0:03:05.1]}
5... Bxd3 {[%clk 0:03:04.4]} 6. Qxd3 {[%clk 0:03:07]} 6... Qa5+ {[%clk
0:03:05.7]} 7. Nd2 {[%clk 0:03:07.2]} 7... Qa6 {[%clk 0:03:06.8]} 8. e6 {[%clk
0:03:08.5]} 8... Qxd3 {[%clk 0:03:07]} 9. exf7+ {[%clk 0:03:09.2]} 9... Kxf7
{[%clk 0:03:08]} 10. cxd3 {[%clk 0:03:11.1]} 10... Nd7 {[%clk 0:03:08.3]} 11.
Ndf3 {[%clk 0:03:09]} 11... Re8 {[%clk 0:03:07.1]} 12. Ng5+ {[%clk 0:02:59.6]}
12... Kf6 {[%clk 0:03:07.5]} 13. f4 {[%clk 0:02:57.4]} 13... e6 {[%clk
0:03:06.3]} 14. N1f3 {[%clk 0:02:58]} 14... Nh6 {[%clk 0:03:06.5]} 15. Ne5
{[%clk 0:02:58]} 15... Nxe5 {[%clk 0:03:03.5]} 16. fxe5+ {[%clk 0:02:59.9]}
16... Ke7 {[%clk 0:03:02.7]} 17. O-O {[%clk 0:02:17.5]} 17... Nf5 {[%clk
0:03:03]} 18. Bd2 {[%clk 0:02:18.5]} 18... Kd7 {[%clk 0:02:56.3]} 19. Nf3 {[%clk
0:02:10.2]} 19... Be7 {[%clk 0:02:56.3]} 20. Bg5 {[%clk 0:02:08.8]} 20... Bxg5
{[%clk 0:02:54.6]} 21. hxg5 {[%clk 0:02:07.2]} 21... h4 {[%clk 0:02:53.2]} 22.
Kh2 {[%clk 0:02:05.7]} 22... Rh5 {[%clk 0:02:53]} 23. Kh3 {[%clk 0:01:58.1]}
23... g6 {[%clk 0:02:47.5]} 24. Rae1 {[%clk 0:01:57.9]} 24... Rf8 {[%clk
0:02:42.3]} 25. Kg4 {[%clk 0:01:27.5]} 25... Rh7 {[%clk 0:02:33.3]} 26. Rh1
{[%clk 0:01:23.4]} 26... Rfh8 {[%clk 0:02:28.3]} 27. Rh3 {[%clk 0:01:18.4]}
27... b6 {[%clk 0:02:22.2]} 28. b4 {[%clk 0:01:05.3]} 28... Rh5 {[%clk
0:02:13.2]} 29. Rhh1 {[%clk 0:01:04.2]} 29... Rc8 {[%clk 0:02:06.7]} 30. Nxh4
{[%clk 0:00:59.5]} 30... Rch8 {[%clk 0:02:00.2]} 31. g3 {[%clk 0:01:00.3]} 31...
Nxd4 {[%clk 0:01:59.4]} 32. Rhf1 {[%clk 0:00:30.3]} 32... Nf5 {[%clk 0:01:56]}
33. Nxg6 {[%clk 0:00:31.1]} 33... Rg8 {[%clk 0:01:45.8]} 34. Kxh5 {[%clk
0:00:30.1]} 34... Nxg3+ {[%clk 0:01:46.5]} 35. Kh6 {[%clk 0:00:29.4]} 35... Nf5+
{[%clk 0:01:40.2]} 36. Rxf5 {[%clk 0:00:29]} 36... exf5 {[%clk 0:01:41.2]} 37.
e6+ {[%clk 0:00:30.3]} 1-0

[Event "*** Titled Tuesday Blitz"]
[Site "Chess.com"]
[Date "2019.07.02"]
[Round "6"]
[White "Genghis_K"]
[Black "VerdeNotte"]
[Result "1-0"]
[WhiteElo "2836"]
[BlackElo "2835"]
[TimeControl "180+2"]
[EndTime "14:21:06 PDT"]
[Termination "Genghis_K won by resignation"]

1. e4 {[%clk 0:02:55]} 1... e5 {[%clk 0:03:00.4]} 2. Nf3 {[%clk 0:02:56.2]} 2...
Nc6 {[%clk 0:03:01.8]} 3. Bb5 {[%clk 0:02:56.8]} 3... a6 {[%clk 0:03:02.9]} 4.
Ba4 {[%clk 0:02:57.5]} 4... Nf6 {[%clk 0:03:04]} 5. O-O {[%clk 0:02:59.1]} 5...
Bc5 {[%clk 0:03:04.1]} 6. Bxc6 {[%clk 0:02:50.6]} 6... dxc6 {[%clk 0:03:05]} 7.
d3 {[%clk 0:02:52.2]} 7... Qe7 {[%clk 0:03:04.8]} 8. Nbd2 {[%clk 0:02:53.5]}
8... O-O {[%clk 0:03:01]} 9. Nc4 {[%clk 0:02:50.7]} 9... Bg4 {[%clk 0:03:00.9]}
10. Ncxe5 {[%clk 0:02:30.5]} 10... Bh5 {[%clk 0:02:50.8]} 11. Bg5 {[%clk
0:02:25]} 11... h6 {[%clk 0:02:45]} 12. Bxf6 {[%clk 0:02:23.3]} 12... gxf6
{[%clk 0:02:42]} 13. Nc4 {[%clk 0:02:24.7]} 13... Kh7 {[%clk 0:02:32]} 14. Re1
{[%clk 0:02:15.2]} 14... f5 {[%clk 0:02:26.1]} 15. exf5 {[%clk 0:02:11.2]} 15...
Qf6 {[%clk 0:02:25.3]} 16. d4 {[%clk 0:02:12.7]} 16... Rad8 {[%clk 0:02:07.5]}
17. c3 {[%clk 0:02:12]} 17... Qxf5 {[%clk 0:01:51.4]} 18. Re5 {[%clk 0:02:09.7]}
18... Bxf3 {[%clk 0:01:52.4]} 19. Rxf5 {[%clk 0:02:10.4]} 19... Bxd1 {[%clk
0:01:53.2]} 20. Rxd1 {[%clk 0:02:12.2]} 20... Bd6 {[%clk 0:01:51.2]} 21. Re1
{[%clk 0:02:10.9]} 21... Kg7 {[%clk 0:01:44.3]} 22. Re4 {[%clk 0:02:05.5]} 22...
Rfe8 {[%clk 0:01:42]} 23. Rxe8 {[%clk 0:01:52.4]} 23... Rxe8 {[%clk 0:01:42.7]}
24. Ne3 {[%clk 0:01:54.1]} 24... b6 {[%clk 0:01:40.3]} 25. Kf1 {[%clk
0:01:55.2]} 25... c5 {[%clk 0:01:41.3]} 26. Ke2 {[%clk 0:01:51.9]} 26... cxd4
{[%clk 0:01:39.9]} 27. cxd4 {[%clk 0:01:53.8]} 27... Kg6 {[%clk 0:01:35.7]} 28.
Rd5 {[%clk 0:01:52.1]} 28... f5 {[%clk 0:01:28.6]} 29. Kf3 {[%clk 0:01:50.8]}
29... Bxh2 {[%clk 0:01:24.3]} 30. g3 {[%clk 0:01:50.1]} 30... f4 {[%clk
0:01:21.9]} 31. gxf4 {[%clk 0:01:45.1]} 31... Rf8 {[%clk 0:01:22.9]} 32. Ng2
{[%clk 0:01:46.7]} 32... h5 {[%clk 0:01:18.9]} 33. Rg5+ {[%clk 0:01:43.5]} 33...
Kh6 {[%clk 0:01:18]} 34. Re5 {[%clk 0:01:44.7]} 34... h4 {[%clk 0:01:11.2]} 35.
Kg4 {[%clk 0:01:43.9]} 35... h3 {[%clk 0:01:06.5]} 36. Rh5+ {[%clk 0:01:45.1]}
36... Kg6 {[%clk 0:01:05.4]} 37. Rxh3 {[%clk 0:01:46.6]} 37... Bg1 {[%clk
0:01:06.5]} 38. Kf3 {[%clk 0:01:48.2]} 38... Rd8 {[%clk 0:01:00.1]} 39. Rh1
{[%clk 0:01:47.7]} 39... Bxf2 {[%clk 0:01:00.9]} 40. Kxf2 {[%clk 0:01:49.6]}
40... Rxd4 {[%clk 0:01:02.2]} 41. Ke3 {[%clk 0:01:48.7]} 41... Rb4 {[%clk
0:01:02.7]} 42. Nh4+ {[%clk 0:01:49.3]} 42... Kf6 {[%clk 0:01:00]} 43. Rh2
{[%clk 0:01:50.4]} 43... a5 {[%clk 0:00:59.6]} 44. Nf3 {[%clk 0:01:51.2]} 44...
Kf5 {[%clk 0:00:58.3]} 45. Nd4+ {[%clk 0:01:51.9]} 45... Kf6 {[%clk 0:00:53.5]}
46. b3 {[%clk 0:01:53.3]} 46... a4 {[%clk 0:00:50.8]} 47. Rh6+ {[%clk
0:01:52.3]} 47... Kg7 {[%clk 0:00:51.2]} 48. Rc6 {[%clk 0:01:53.8]} 48... Kf7
{[%clk 0:00:42.8]} 49. Rxc7+ {[%clk 0:01:54.7]} 49... Ke8 {[%clk 0:00:42.9]} 50.
Rc4 {[%clk 0:01:55.9]} 1-0

[Event "*** Titled Tuesday Blitz"]
[Site "Chess.com"]
[Date "2019.07.02"]
[Round "6"]
[White "pulvettd"]
[Black "Aleksandr_Kholin"]
[Result "0-1"]
[WhiteElo "2511"]
[BlackElo "2394"]
[TimeControl "180+2"]
[EndTime "14:21:16 PDT"]
[Termination "Aleksandr_Kholin won by checkmate"]

1. d4 {[%clk 0:03:01]} 1... f5 {[%clk 0:02:58.8]} 2. g3 {[%clk 0:03:00.7]} 2...
g6 {[%clk 0:02:58.7]} 3. Bg2 {[%clk 0:03:02]} 3... Bg7 {[%clk 0:02:58.9]} 4. c3
{[%clk 0:03:03.4]} 4... Nf6 {[%clk 0:02:57.6]} 5. h4 {[%clk 0:03:04.8]} 5... d6
{[%clk 0:02:56.4]} 6. Qb3 {[%clk 0:03:00.3]} 6... e6 {[%clk 0:02:56.9]} 7. Nh3
{[%clk 0:03:01.1]} 7... Nc6 {[%clk 0:02:48.2]} 8. Nf4 {[%clk 0:03:00.6]} 8...
Qe7 {[%clk 0:02:42.6]} 9. h5 {[%clk 0:02:52]} 9... e5 {[%clk 0:02:33]} 10. h6
{[%clk 0:02:39.5]} 10... Bf8 {[%clk 0:02:31]} 11. Nd5 {[%clk 0:02:30.5]} 11...
Nxd5 {[%clk 0:02:30.9]} 12. Bxd5 {[%clk 0:02:32]} 12... Nd8 {[%clk 0:02:29.6]}
13. dxe5 {[%clk 0:02:24]} 13... dxe5 {[%clk 0:02:28.2]} 14. Na3 {[%clk
0:02:15.1]} 14... c6 {[%clk 0:02:26.8]} 15. Bg2 {[%clk 0:02:14.3]} 15... Be6
{[%clk 0:02:28.2]} 16. Qa4 {[%clk 0:02:07]} 16... Qc7 {[%clk 0:02:25.3]} 17. Be3
{[%clk 0:02:04.7]} 17... Be7 {[%clk 0:02:22.6]} 18. O-O-O {[%clk 0:01:34.2]}
18... Nf7 {[%clk 0:02:21.1]} 19. Kb1 {[%clk 0:01:20.3]} 19... O-O {[%clk
0:02:19.3]} 20. f4 {[%clk 0:01:09.3]} 20... Rfe8 {[%clk 0:02:09.9]} 21. g4
{[%clk 0:00:54.1]} 21... b5 {[%clk 0:02:06.7]} 22. Qa6 {[%clk 0:00:52.8]} 22...
Bxa3 {[%clk 0:02:06.5]} 23. Qxa3 {[%clk 0:00:42.8]} 23... exf4 {[%clk 0:02:04]}
24. Bd4 {[%clk 0:00:38]} 24... fxg4 {[%clk 0:02:05.1]} 25. Qc5 {[%clk
0:00:27.8]} 25... Rad8 {[%clk 0:02:04.1]} 26. Bxc6 {[%clk 0:00:20.6]} 26... Bd7
{[%clk 0:02:04]} 27. Bd5 {[%clk 0:00:17.1]} 27... Qxc5 {[%clk 0:02:05.7]} 28.
Bxc5 {[%clk 0:00:19]} 28... Bf5+ {[%clk 0:02:03.8]} 29. Kc1 {[%clk 0:00:18.9]}
29... Rxd5 {[%clk 0:02:04.5]} 30. Rxd5 {[%clk 0:00:18.5]} 30... Be4 {[%clk
0:02:03.3]} 31. Rhd1 {[%clk 0:00:19.8]} 31... Bxd5 {[%clk 0:02:00.6]} 32. Rxd5
{[%clk 0:00:21.7]} 32... Rxe2 {[%clk 0:01:58.6]} 33. Rd7 {[%clk 0:00:20.2]}
33... g3 {[%clk 0:01:56.7]} 34. Rxa7 {[%clk 0:00:20]} 34... Re8 {[%clk
0:01:53.1]} 35. Rd7 {[%clk 0:00:15.8]} 35... f3 {[%clk 0:01:54]} 36. Rd3 {[%clk
0:00:15.3]} 36... f2 {[%clk 0:01:52.2]} 37. Bxf2 {[%clk 0:00:14.4]} 37... gxf2
{[%clk 0:01:51.6]} 38. Rf3 {[%clk 0:00:16.3]} 38... Re1+ {[%clk 0:01:52.2]} 39.
Kd2 {[%clk 0:00:18.2]} 39... f1=Q {[%clk 0:01:54.1]} 40. Rxf1 {[%clk 0:00:20.1]}
40... Rxf1 {[%clk 0:01:55.7]} 41. c4 {[%clk 0:00:22]} 41... bxc4 {[%clk
0:01:56.2]} 42. a4 {[%clk 0:00:23.9]} 42... Nxh6 {[%clk 0:01:57.2]} 43. a5
{[%clk 0:00:25.8]} 43... Ra1 {[%clk 0:01:58.6]} 44. Kc3 {[%clk 0:00:27.7]} 44...
Rxa5 {[%clk 0:01:59]} 45. Kxc4 {[%clk 0:00:29.6]} 45... Ra2 {[%clk 0:02:00.6]}
46. b4 {[%clk 0:00:31.5]} 46... Rb2 {[%clk 0:02:02]} 47. b5 {[%clk 0:00:32.7]}
47... Rxb5 {[%clk 0:02:03.9]} 48. Kxb5 {[%clk 0:00:33.9]} 48... Nf5 {[%clk
0:02:05.8]} 49. Kc5 {[%clk 0:00:35.8]} 49... Kg7 {[%clk 0:02:07.7]} 50. Kd5
{[%clk 0:00:36.6]} 50... Kf6 {[%clk 0:02:09.6]} 51. Ke4 {[%clk 0:00:38.5]} 51...
h5 {[%clk 0:02:11.5]} 52. Kf4 {[%clk 0:00:39.7]} 52... g5+ {[%clk 0:02:12.6]}
53. Kf3 {[%clk 0:00:41.6]} 53... Ke5 {[%clk 0:02:14.5]} 54. Kg2 {[%clk
0:00:43.5]} 54... Kf4 {[%clk 0:02:15.8]} 55. Kh2 {[%clk 0:00:45.4]} 55... h4
{[%clk 0:02:17.7]} 56. Kg2 {[%clk 0:00:47.3]} 56... g4 {[%clk 0:02:19.6]} 57.
Kh2 {[%clk 0:00:49.2]} 57... Ne3 {[%clk 0:02:21.2]} 58. Kg1 {[%clk 0:00:50.3]}
58... Kf3 {[%clk 0:02:22.6]} 59. Kh1 {[%clk 0:00:52.2]} 59... g3 {[%clk
0:02:23.9]} 60. Kg1 {[%clk 0:00:54.1]} 60... g2 {[%clk 0:02:23.7]} 61. Kh2
{[%clk 0:00:56]} 61... Kf2 {[%clk 0:02:25.6]} 62. Kh3 {[%clk 0:00:56.1]} 62...
g1=Q {[%clk 0:02:26.9]} 63. Kxh4 {[%clk 0:00:58]} 63... Qg4# {[%clk 0:02:28.2]}
0-1

[Event "*** Titled Tuesday Blitz"]
[Site "Chess.com"]
[Date "2019.07.02"]
[Round "6"]
[White "Orest_Vovk"]
[Black "OglazaOskar2005"]
[Result "1-0"]
[WhiteElo "2338"]
[BlackElo "2261"]
[TimeControl "180+2"]
[EndTime "14:21:24 PDT"]
[Termination "Orest_Vovk won by checkmate"]

1. h4 {[%clk 0:03:01.9]} 1... e5 {[%clk 0:02:57.9]} 2. h5 {[%clk 0:03:03.3]}
2... d5 {[%clk 0:02:53.1]} 3. h6 {[%clk 0:03:04]} 3... Nxh6 {[%clk 0:02:41.3]}
4. d4 {[%clk 0:03:04.4]} 4... e4 {[%clk 0:02:30.3]} 5. Bxh6 {[%clk 0:03:03.3]}
5... gxh6 {[%clk 0:02:32.2]} 6. e3 {[%clk 0:03:03.2]} 6... Bg7 {[%clk
0:02:28.4]} 7. c4 {[%clk 0:03:04]} 7... O-O {[%clk 0:02:27.9]} 8. Nc3 {[%clk
0:03:04.8]} 8... c6 {[%clk 0:02:27.3]} 9. Qb3 {[%clk 0:03:05.3]} 9... dxc4
{[%clk 0:02:16.8]} 10. Bxc4 {[%clk 0:03:04.9]} 10... b5 {[%clk 0:02:17.4]} 11.
Be2 {[%clk 0:03:03]} 11... Be6 {[%clk 0:02:17.7]} 12. Qc2 {[%clk 0:03:03]} 12...
f5 {[%clk 0:02:19.1]} 13. Nh3 {[%clk 0:03:03.1]} 13... Nd7 {[%clk 0:02:17.2]}
14. Nf4 {[%clk 0:03:03.8]} 14... Bf7 {[%clk 0:02:17.7]} 15. Bh5 {[%clk 0:02:57]}
15... Qa5 {[%clk 0:02:09.3]} 16. Bxf7+ {[%clk 0:02:55.5]} 16... Rxf7 {[%clk
0:02:09.7]} 17. Qb3 {[%clk 0:02:54.4]} 17... Nb6 {[%clk 0:01:57]} 18. Qe6 {[%clk
0:02:49.2]} 18... b4 {[%clk 0:01:53.2]} 19. Nce2 {[%clk 0:02:45]} 19... c5
{[%clk 0:01:36]} 20. b3 {[%clk 0:02:22.9]} 20... Rd8 {[%clk 0:01:23.5]} 21. Nh5
{[%clk 0:01:58.2]} 21... Bf8 {[%clk 0:00:43.4]} 22. Nf6+ {[%clk 0:01:37.7]}
22... Kg7 {[%clk 0:00:43.7]} 23. Nf4 {[%clk 0:01:36.8]} 23... Be7 {[%clk
0:00:39.6]} 24. Rxh6 {[%clk 0:01:20.8]} 24... Bxf6 {[%clk 0:00:23.5]} 25. Rxh7+
{[%clk 0:00:48.3]} 25... Kxh7 {[%clk 0:00:23.9]} 26. Qxf7+ {[%clk 0:00:49.4]}
26... Bg7 {[%clk 0:00:25.4]} 27. O-O-O {[%clk 0:00:42.6]} 27... Qa3+ {[%clk
0:00:11.5]} 28. Kb1 {[%clk 0:00:42.9]} 28... Rd6 {[%clk 0:00:11.8]} 29. Rh1+
{[%clk 0:00:43]} 29... Rh6 {[%clk 0:00:13.7]} 30. Rxh6+ {[%clk 0:00:43]} 30...
Kxh6 {[%clk 0:00:15.6]} 31. Qg6# {[%clk 0:00:43.2]} 1-0